bitfinex/quotes_BTCUSD_20250205
["timestamp","ask_amount","ask_price","bid_price","bid_amount"]
[1738783665959,0.12561055,97020.0,97019.0,0.154607]
[1738783668194,0.023,97019.0,97015.0,0.154613]
[1738783668569,0.023,97017.0,97016.0,0.154613]
[1738783668702,0.12550365,97017.0,97016.0,0.154613]
[1738783670880,0.12550365,97017.0,97012.0,0.00061759]
[1738783671148,0.10250365,97016.0,97013.0,0.154618]
[1738783671361,0.10250365,97016.0,97015.0,0.154615]
[1738783671559,0.10250365,97016.0,97014.0,0.206154]
[1738783671935,0.10250365,97016.0,97015.0,0.154615]
[1738783672152,0.10250365,97016.0,97014.0,0.206154]
[1738783672378,0.10250365,97016.0,97015.0,0.154615]
[1738783672645,0.10250365,97016.0,97012.0,0.00061759]
[1738783672646,0.023,97015.0,97012.0,0.00061759]
[1738783672889,0.177618,97013.0,97012.0,0.00061759]
[1738783673112,0.28012165,97013.0,97012.0,0.00061759]
[1738783673364,0.12550365,97013.0,97012.0,0.00061759]
[1738783673559,0.28012165,97013.0,97012.0,0.00061759]
[1738783673788,0.12550365,97013.0,97012.0,0.00061759]
[1738783673962,0.28012165,97013.0,97012.0,0.00061759]
[1738783675505,0.29166579,97013.0,97012.0,0.00061759]
[1738783676548,0.12550365,97013.0,97012.0,0.00061759]
[1738783678632,0.28012165,97013.0,97012.0,0.00061759]
[1738783678911,0.12550365,97013.0,97012.0,0.00061759]
[1738783681969,0.12550365,97013.0,97012.0,0.15523759]
[1738783682168,0.12550365,97013.0,97012.0,0.00061759]
[1738783682372,0.0001069,97020.0,97019.0,0.154608]
[1738783682573,0.10261055,97020.0,97019.0,0.154608]
[1738783686350,0.0001069,97020.0,97019.0,0.276408]
[1738783686704,0.0001069,97020.0,97019.0,0.426408]
[1738783687295,0.0001069,97020.0,97019.0,0.46996196]
[1738783688594,0.0001069,97020.0,97019.0,0.57246561]
[1738783692076,0.0001069,97020.0,97019.0,1.59808452]
[1738783694220,0.0021922,97050.0,97049.0,0.154561]
[1738783697650,0.0021922,97050.0,97049.0,0.15559131]
[1738783698430,0.0021922,97050.0,97049.0,0.7612249]
[1738783698753,0.0021922,97050.0,97049.0,0.76019459]
[1738783702533,0.0021922,97050.0,97049.0,0.76041887]
[1738783702768,0.002299,97050.0,97049.0,0.76041887]
[1738783708312,0.002299,97050.0,97049.0,0.61041887]
[1738783713421,0.002299,97050.0,97049.0,0.68571887]
[1738783714260,0.002299,97050.0,97049.0,0.61041887]
[1738783718029,0.002299,97050.0,97049.0,0.15478528]
[1738783718584,0.12780265,97050.0,97049.0,0.00022428]
[1738783718861,0.12780265,97050.0,97049.0,0.15478528]
[1738783719493,0.12780265,97050.0,97049.0,0.00022428]
[1738783719865,0.12780265,97050.0,97049.0,0.15478528]
[1738783721175,0.002299,97050.0,97049.0,0.15478528]
[1738783727594,0.002299,97050.0,97049.0,0.15581557]
[1738783728801,0.002299,97050.0,97049.0,0.15478528]
[1738783729230,0.002299,97050.0,97049.0,0.15581548]
[1738783729596,0.002299,97050.0,97049.0,0.15478528]
[1738783732032,0.002299,97050.0,97049.0,0.16605605]
[1738783732233,0.002299,97050.0,97049.0,0.16708625]
[1738783736862,0.002299,97050.0,97049.0,0.19920623]
[1738783744520,0.002299,97050.0,97049.0,0.49810988]
[1738783744720,0.002299,97050.0,97049.0,0.57247968]
[1738783746454,1e-06,97050.0,97049.0,0.57247968]
[1738783748875,0.0001069,97071.0,97070.0,0.154527]
[1738783749052,0.0001069,97071.0,97070.0,0.91678057]
[1738783749255,0.0001069,97071.0,97070.0,0.88466059]
[1738783749665,0.0001069,97071.0,97070.0,0.91666281]
[1738783752226,9e-07,97071.0,97070.0,1.01916646]
[1738783752431,0.0001069,97110.0,97078.0,0.15]
[1738783752432,7e-07,97083.0,97078.0,0.15]
[1738783752651,7e-07,97083.0,97082.0,0.427508]
[1738783752823,7e-07,97083.0,97082.0,2.04326637]
[1738783753044,7e-07,97083.0,97082.0,2.05326637]
[1738783753348,0.0001069,97110.0,97109.0,0.154465]
[1738783753551,0.0001069,97110.0,97109.0,0.86363174]
[1738783753683,0.0001069,97110.0,97109.0,0.86260224]
[1738783754088,0.0001069,97110.0,97109.0,0.8734327]
[1738783754587,0.0001069,97110.0,97109.0,0.86260224]
[1738783755571,0.0001069,97110.0,97109.0,0.91225408]
[1738783756526,0.0001069,97110.0,97109.0,0.92894645]
[1738783756754,0.0001069,97110.0,97109.0,0.92353122]
[1738783757523,0.0001069,97110.0,97109.0,0.96533773]
[1738783757728,0.0001069,97110.0,97109.0,0.92353122]
[1738783758240,0.0001069,97110.0,97109.0,0.96533773]
[1738783759051,0.0071138,97119.0,97118.0,0.154451]
[1738783759291,0.0071138,97119.0,97118.0,0.304451]
[1738783760299,0.0071138,97119.0,97118.0,0.32354786]
[1738783761546,0.0072206,97119.0,97118.0,0.32354786]
[1738783761781,0.0072206,97119.0,97118.0,0.35410284]
[1738783762716,0.0072206,97119.0,97118.0,0.58030649]
[1738783762918,0.0072206,97119.0,97118.0,0.59465929]
[1738783763339,0.0072206,97119.0,97118.0,0.62132506]
[1738783764294,0.0103103,97132.0,97131.0,0.30443]
[1738783764295,0.0065309,97132.0,97131.0,0.30443]
[1738783764483,0.0065309,97132.0,97131.0,0.76006359]
[1738783764684,0.0065309,97132.0,97131.0,0.77441639]
[1738783765460,0.0065309,97132.0,97131.0,0.80108216]
[1738783765777,0.0065309,97132.0,97131.0,0.850734]
[1738783766770,0.0065309,97132.0,97131.0,0.86208666]
[1738783770393,0.0065309,97132.0,97131.0,0.83542089]
[1738783772617,0.0065309,97132.0,97131.0,0.85779189]
[1738783773099,0.0065309,97132.0,97131.0,0.83542089]
[1738783773456,0.0066377,97132.0,97131.0,0.83542089]
[1738783774660,0.0066377,97132.0,97131.0,0.85779189]
[1738783774869,0.0066377,97132.0,97131.0,0.83542089]
[1738783775041,0.0066377,97132.0,97131.0,0.82626668]
[1738783775376,0.0066377,97132.0,97131.0,0.82106809]
[1738783780251,0.0066377,97132.0,97131.0,0.79051311]
[1738783784283,0.0006377,97132.0,97131.0,0.83771311]
[1738783784711,0.0006377,97132.0,97131.0,0.83793739]
[1738783786278,0.0006377,97132.0,97131.0,0.86988213]
[1738783789126,0.0622166,97150.0,97149.0,0.154402]
[1738783790236,0.0622166,97150.0,97149.0,0.17349886]
[1738783792039,0.06212514,97150.0,97149.0,0.17349886]
[1738783796254,0.16473559,97150.0,97149.0,0.17349886]
[1738783796939,0.16473559,97150.0,97149.0,0.01909686]
[1738783797188,0.21403559,97150.0,97149.0,0.01909686]
[1738783797396,0.21403559,97150.0,97140.0,0.205887]
[1738783797725,0.21403559,97150.0,97135.0,0.15]
[1738783797934,0.21403559,97150.0,97148.0,0.154403]
[1738783798113,0.23543915,97150.0,97149.0,0.154402]
[1738783798514,0.21403559,97150.0,97149.0,0.154402]
[1738783798715,0.21403559,97150.0,97132.0,0.45563359]
[1738783798940,0.0769,97148.0,97139.0,0.205889]
[1738783799101,0.10250365,97147.0,97142.0,0.154412]
[1738783799297,0.10250365,97147.0,97143.0,0.154411]
[1738783799507,0.10250365,97147.0,97142.0,0.154411]
[1738783799706,0.10250365,97147.0,97140.0,0.205886]
[1738783800150,0.10250365,97147.0,97141.0,0.154414]
[1738783800353,0.0787,97142.0,97132.0,0.45563359]
[1738783800515,0.0787,97138.0,97131.0,0.00022428]
[1738783800712,0.0787,97136.0,97131.0,0.00022428]
[1738783800908,0.10250365,97135.0,97131.0,0.00022428]
[1738783801116,0.10250365,97135.0,97134.0,0.154425]
[1738783803161,0.40843265,97132.0,97131.0,0.00022428]
[1738783803572,0.47028265,97132.0,97131.0,0.00022428]
[1738783808254,0.63028265,97132.0,97131.0,0.00022428]
[1738783808389,0.1517,97104.0,97103.0,0.08199704]
[1738783808728,0.25420365,97104.0,97103.0,0.08199704]
[1738783808947,0.23120365,97104.0,97091.0,0.20599]
[1738783809234,0.23120365,97104.0,97083.0,0.15022428]
[1738783809235,0.023,97102.0,97083.0,0.15022428]
[1738783809444,0.023,97098.0,97083.0,0.00022428]
[1738783809650,0.023,97096.0,97083.0,0.00022428]
[1738783809855,0.023,97094.0,97083.0,0.00022428]
[1738783810112,0.10250365,97093.0,97083.0,0.00022428]
[1738783810510,0.023,97092.0,97083.0,0.00022428]
[1738783810653,0.10250365,97091.0,97083.0,0.00022428]
[1738783810854,0.10250365,97091.0,97085.0,0.154503]
[1738783811659,0.10250365,97091.0,97083.0,0.00022428]
[1738783811911,0.10250365,97091.0,97088.0,0.205997]
[1738783812895,0.10250365,97091.0,97084.0,0.206007]
[1738783813296,0.10250365,97091.0,97090.0,0.154495]
[1738783816714,0.10250365,97091.0,97083.0,0.00022428]
[1738783816888,0.30849665,97091.0,97083.0,0.00022428]
[1738783817050,0.10250365,97091.0,97083.0,0.00022428]
[1738783817249,0.10250365,97091.0,97084.0,0.154505]
[1738783817459,0.10250365,97091.0,97083.0,0.00022428]
[1738783817660,0.154495,97090.0,97083.0,0.00022428]
[1738783817930,0.10250365,97089.0,97084.0,0.154505]
[1738783818868,0.10250365,97089.0,97083.0,0.00022428]
[1738783819063,0.154503,97085.0,97084.0,0.00022428]
[1738783819381,0.18290365,97085.0,97084.0,0.00022428]
[1738783820879,0.36040665,97085.0,97084.0,0.00022428]
[1738783821500,0.50718067,97085.0,97084.0,0.00022428]
[1738783822458,0.40820665,97085.0,97084.0,0.00022428]
[1738783822662,0.20590365,97085.0,97084.0,0.00022428]
[1738783824355,0.10250365,97085.0,97084.0,0.15472928]
[1738783824554,0.00856,97095.0,97084.0,0.00022428]
[1738783824777,0.10250365,97094.0,97088.0,0.154498]
[1738783825027,0.10250365,97094.0,97084.0,0.00022428]
[1738783825261,0.10250365,97094.0,97085.0,0.154503]
[1738783825551,0.0803,97124.0,97086.0,0.00102997]
[1738783825706,0.14309258,97120.0,97106.0,0.15447]
[1738783825908,0.14309258,97120.0,97085.0,0.206005]
[1738783825909,0.023,97115.0,97107.0,0.154468]
[1738783826129,0.177459,97113.0,97093.0,0.205987]
[1738783826342,0.10250365,97112.0,97093.0,0.205987]
[1738783826581,0.10250365,97112.0,97107.0,0.154468]
[1738783826785,0.10250365,97112.0,97094.0,0.00102979]
[1738783826934,0.10250365,97112.0,97106.0,0.154469]
[1738783827135,0.10250365,97112.0,97095.0,0.205983]
[1738783827343,0.10250365,97112.0,97108.0,0.154466]
[1738783827578,0.10250365,97112.0,97096.0,0.205981]
[1738783827765,0.10250365,97112.0,97110.0,0.154463]
[1738783827962,0.10250365,97112.0,97107.0,0.205958]
[1738783828165,0.10250365,97112.0,97103.0,0.205966]
[1738783828363,0.10250365,97112.0,97101.0,0.154477]
[1738783828562,0.25696465,97112.0,97104.0,0.154473]
[1738783828796,0.10250365,97112.0,97097.0,0.01908822]
[1738783829047,0.10250365,97112.0,97110.0,0.154463]
[1738783829686,0.10250365,97112.0,97108.0,0.205954]
[1738783830091,0.10250365,97112.0,97110.0,0.154463]
[1738783830630,0.10250365,97112.0,97106.0,0.154468]
[1738783830824,0.10250365,97112.0,97108.0,0.154466]
[1738783831391,0.10250365,97112.0,97106.0,0.154469]
[1738783832271,0.10250365,97112.0,97107.0,0.01913511]
[1738783832886,0.10250365,97112.0,97107.0,0.17360211]
[1738783833290,0.10250365,97112.0,97108.0,0.01913511]
[1738783834654,0.0766,97137.0,97108.0,0.01913511]
[1738783834853,0.10250365,97130.0,97109.0,0.02016471]
[1738783835491,0.10250365,97130.0,97126.0,0.154438]
[1738783835846,1.5,97129.0,97123.0,0.205922]
[1738783836060,0.10250365,97128.0,97123.0,0.154442]
[1738783836241,0.10250365,97128.0,97127.0,0.154436]
[1738783837517,0.10250365,97128.0,97124.0,0.205921]
[1738783837518,0.0001068,97131.0,97130.0,0.154432]
[1738783839040,0.0001068,97131.0,97130.0,0.17353697]
[1738783839262,0.0001068,97131.0,97130.0,0.17456642]
[1738783839453,0.0001068,97131.0,97130.0,0.32456642]
[1738783839624,0.0001068,97131.0,97130.0,0.32353697]
[1738783840017,0.0001068,97131.0,97130.0,0.35407871]
[1738783841366,0.0001068,97131.0,97130.0,0.45658236]
[1738783841543,0.0001068,97131.0,97130.0,0.58348236]
[1738783844315,0.0001068,97150.0,97133.0,0.15]
[1738783844516,0.0001068,97150.0,97149.0,0.304402]
[1738783844672,0.0001068,97150.0,97149.0,0.76003559]
[1738783845302,0.0001068,97150.0,97149.0,0.84769959]
[1738783845972,0.0001068,97150.0,97149.0,0.97019959]
[1738783846416,0.0001068,97150.0,97149.0,0.9970509]
[1738783846605,0.0001068,97150.0,97149.0,1.12621543]
[1738783847052,0.0001068,97150.0,97149.0,1.13621543]
[1738783847235,0.0001068,97150.0,97149.0,2.17255534]
[1738783847406,0.0001068,97150.0,97149.0,1.14693643]
[1738783847606,0.0001068,97150.0,97149.0,1.15693643]
[1738783847879,0.0001068,97150.0,97149.0,1.10342424]
[1738783848037,0.0001068,97150.0,97149.0,1.1110069]
[1738783848430,0.0001069,97169.0,97168.0,0.304371]
[1738783848631,0.0001069,97181.0,97168.0,0.304371]
[1738783848632,0.0001069,97181.0,97180.0,0.154352]
[1738783849156,0.0001069,97181.0,97180.0,0.15538086]
[1738783849926,0.0001069,97181.0,97180.0,0.30538086]
[1738783850128,0.0001069,97181.0,97180.0,0.304352]
[1738783850373,0.0001069,97181.0,97170.0,0.14309258]
[1738783850374,0.0001069,97181.0,97165.0,0.45563359]
[1738783850576,0.0231069,97181.0,97180.0,0.04964671]
[1738783850780,0.31214554,97181.0,97180.0,0.04964671]
[1738783850982,1.81214554,97181.0,97180.0,0.04964671]
[1738783851140,1.83247327,97181.0,97180.0,0.04964671]
[1738783851962,1.83247327,97181.0,97143.0,0.00102919]
[1738783851963,0.154377,97165.0,97151.0,0.03033196]
[1738783852185,0.154384,97161.0,97151.0,0.03033196]
[1738783852388,0.10250365,97160.0,97151.0,0.03033196]
[1738783852791,0.023,97159.0,97151.0,0.03033196]
[1738783852988,0.023,97157.0,97151.0,0.03033196]
[1738783853238,0.023,97155.0,97151.0,0.03033196]
[1738783853393,0.023,97153.0,97152.0,0.04951106]
[1738783853594,0.12550365,97153.0,97152.0,0.04951106]
[1738783855527,0.01063089,97168.0,97152.0,0.04951106]
[1738783855662,0.10250365,97167.0,97166.0,0.154374]
[1738783855921,0.0001069,97181.0,97166.0,0.45563359]
[1738783856069,0.0001069,97181.0,97167.0,0.00102895]
[1738783856275,0.0001069,97181.0,97168.0,0.00102889]
[1738783856628,0.0001069,97181.0,97173.0,0.154362]
[1738783856788,0.25685565,97180.0,97166.0,0.154373]
[1738783856965,0.25685565,97180.0,97154.0,0.45563359]
[1738783856966,0.205814,97175.0,97155.0,0.15542002]
[1738783857359,0.14309258,97176.0,97153.0,0.00102903]
[1738783857569,0.12550365,97175.0,97159.0,0.154385]
[1738783857832,0.12550365,97175.0,97156.0,0.04951106]
[1738783857833,0.14309258,97169.0,97156.0,0.04951106]
[1738783858037,0.023,97167.0,97156.0,0.04951106]
[1738783858239,0.154383,97161.0,97156.0,0.04951106]
[1738783858444,0.177389,97157.0,97156.0,0.04951106]
[1738783858645,0.177389,97157.0,97155.0,0.01899363]
[1738783858646,0.023,97156.0,97155.0,0.01899363]
[1738783858868,0.12550365,97156.0,97155.0,0.01899363]
[1738783859107,0.20670365,97156.0,97155.0,0.01899363]
[1738783859318,1.75170365,97156.0,97133.0,0.01899363]
[1738783859518,0.177398,97151.0,97133.0,0.01899363]
[1738783859730,0.27908363,97151.0,97133.0,0.01899363]
[1738783860868,0.42908363,97151.0,97133.0,0.01899363]
[1738783861085,0.42908363,97151.0,97107.0,0.00022428]
[1738783861626,0.43908363,97151.0,97107.0,0.00022428]
[1738783861829,0.54158728,97151.0,97107.0,0.00022428]
[1738783862038,0.54158728,97151.0,97109.0,0.154465]
[1738783862430,0.54158728,97151.0,97107.0,0.00022428]
[1738783862615,0.154429,97132.0,97107.0,0.00022428]
[1738783862934,0.36073265,97132.0,97107.0,0.00022428]
[1738783864238,0.37141265,97132.0,97107.0,0.00022428]
[1738783864390,0.37141265,97132.0,97112.0,0.205946]
[1738783864593,0.37141265,97132.0,97118.0,0.15445]
[1738783864594,0.38239249,97132.0,97118.0,0.15445]
[1738783864946,0.38239249,97132.0,97112.0,0.205946]
[1738783864947,0.38239249,97132.0,97115.0,0.154454]
[1738783865116,0.29091249,97132.0,97120.0,0.154447]
[1738783865286,0.13648349,97132.0,97120.0,0.154447]
[1738783865494,0.13648349,97132.0,97116.0,0.154452]
[1738783865735,0.13648349,97132.0,97120.0,0.154447]
[1738783866069,0.10250365,97132.0,97131.0,0.15509769]
[1738783866356,0.10250365,97132.0,97131.0,0.00066769]
[1738783866880,0.12550365,97132.0,97131.0,0.00066769]
[1738783867111,0.0001069,97150.0,97132.0,0.41181]
[1738783867307,0.10250365,97149.0,97148.0,0.154403]
[1738783867582,0.0001069,97150.0,97148.0,0.154403]
[1738783868226,0.0001069,97150.0,97142.0,0.205882]
[1738783868426,0.0001069,97150.0,97133.0,0.01978516]
[1738783868835,0.0001069,97150.0,97148.0,0.154402]
[1738783874402,0.0001069,97150.0,97149.0,0.0010292]
[1738783874799,0.0001069,97150.0,97149.0,0.1510292]
[1738783874945,0.0001069,97150.0,97149.0,0.2323292]
[1738783875149,0.0001069,97150.0,97149.0,0.2313]
[1738783875589,0.0001069,97150.0,97149.0,0.23890674]
[1738783875788,0.0001069,97150.0,97149.0,0.34141039]
[1738783876965,0.0001069,97150.0,97149.0,0.35357064]
[1738783879242,0.06310394,97176.0,97175.0,0.15436]
[1738783879803,0.0001069,97181.0,97165.0,0.45563359]
[1738783879982,0.10261055,97181.0,97166.0,0.15]
[1738783880179,0.10261055,97181.0,97178.0,0.154355]
[1738783881013,0.10261055,97181.0,97175.0,0.15436]
[1738783881175,0.10261055,97181.0,97166.0,0.15]
[1738783881587,0.10261055,97181.0,97179.0,0.154353]
[1738783881790,0.0001069,97181.0,97179.0,0.154353]
[1738783882370,0.0001069,97181.0,97180.0,0.00102889]
[1738783882813,0.0001069,97181.0,97180.0,0.00102886]
[1738783884239,0.0001069,97181.0,97179.0,0.15538186]
[1738783885045,0.0001069,97181.0,97179.0,0.154353]
[1738783885222,0.0001069,97181.0,97180.0,0.154352]
[1738783886406,0.023,97180.0,97169.0,0.205824]
[1738783886615,0.154364,97173.0,97162.0,0.205841]
[1738783886824,0.10250365,97172.0,97168.0,0.154371]
[1738783887229,0.10250365,97172.0,97169.0,0.154368]
[1738783887434,0.10250365,97172.0,97167.0,0.154372]
[1738783887636,0.10250365,97172.0,97166.0,0.205831]
[1738783888110,0.10250365,97172.0,97170.0,0.154367]
[1738783888403,0.10250365,97172.0,97158.0,0.15]
[1738783888658,0.10250365,97172.0,97170.0,0.154367]
[1738783889013,0.10250365,97172.0,97169.0,0.154369]
[1738783889215,0.10250365,97172.0,97170.0,0.154368]
[1738783889960,0.10250365,97172.0,97167.0,0.205829]
[1738783890113,0.10250365,97172.0,97168.0,0.15437]
[1738783890313,0.10250365,97172.0,97169.0,0.154369]
[1738783890513,0.10250365,97172.0,97167.0,0.205829]
[1738783890734,0.10250365,97172.0,97170.0,0.154367]
[1738783890904,0.10250365,97172.0,97171.0,0.154367]
[1738783891523,0.10261055,97172.0,97171.0,0.154367]
[1738783893116,0.0001069,97172.0,97171.0,0.154367]
[1738783893681,0.10261055,97172.0,97158.0,0.4117]
[1738783893844,0.10261055,97172.0,97159.0,0.205848]
[1738783893845,0.14227755,97170.0,97159.0,0.205848]
[1738783894050,0.10250365,97169.0,97164.0,0.154377]
[1738783894248,0.10250365,97169.0,97165.0,0.154376]
[1738783894650,0.023,97168.0,97141.0,0.2323]
[1738783894893,0.023,97164.0,97146.0,0.205875]
[1738783895208,0.10250365,97163.0,97153.0,0.20586]
[1738783895406,0.10250365,97163.0,97157.0,0.154388]
[1738783895583,0.10250365,97163.0,97158.0,0.154386]
[1738783895783,0.10250365,97163.0,97153.0,0.20586]
[1738783895964,0.10250365,97163.0,97147.0,0.15]
[1738783896485,0.12550365,97163.0,97162.0,0.154381]
[1738783897295,0.12550365,97163.0,97130.0,0.08199704]
[1738783897469,0.154389,97157.0,97132.0,0.0462]
[1738783897672,0.154396,97153.0,97143.0,0.15441]
[1738783897870,0.023,97151.0,97131.0,0.00066769]
[1738783898093,0.12550365,97150.0,97131.0,0.00066769]
[1738783898295,0.12550365,97150.0,97142.0,0.154411]
[1738783898455,0.12550365,97150.0,97143.0,0.15441]
[1738783898456,0.13974031,97150.0,97143.0,0.15441]
[1738783899108,0.11674031,97150.0,97141.0,0.205885]
[1738783899309,0.11674031,97150.0,97145.0,0.154407]
[1738783899759,0.11674031,97150.0,97146.0,0.154406]
[1738783900175,0.11674031,97150.0,97147.0,0.205872]
[1738783900587,0.11674031,97150.0,97148.0,0.154403]
[1738783901024,0.12820976,97150.0,97137.0,0.205892]
[1738783901231,0.11674031,97150.0,97149.0,0.15462649]
[1738783901851,0.01423666,97150.0,97149.0,0.15462649]
[1738783902732,0.01423666,97150.0,97149.0,0.20165578]
[1738783902932,0.0227803,97166.0,97165.0,0.154376]
[1738783904088,0.0001069,97172.0,97163.0,0.287338]
[1738783904089,0.0001069,97172.0,97171.0,0.154367]
[1738783905427,0.0001069,97172.0,97171.0,0.16198972]
[1738783906215,0.0001069,97172.0,97171.0,0.16301871]
[1738783906620,0.0001069,97172.0,97171.0,0.20871871]
[1738783906826,0.0001069,97172.0,97171.0,0.20768972]
[1738783907669,0.0001069,97172.0,97171.0,0.35768972]
[1738783910551,0.0001069,97172.0,97171.0,0.00762272]
[1738783910789,0.0001069,97172.0,97171.0,0.16198972]
[1738783911748,0.0001069,97172.0,97171.0,0.16301876]
[1738783913204,0.0001069,97172.0,97171.0,0.54262241]
[1738783913419,0.0001069,97172.0,97171.0,0.54159337]
[1738783913795,0.0001069,97172.0,97171.0,0.55248703]
[1738783915587,0.0001069,97172.0,97171.0,0.55271131]
[1738783917579,0.0001069,97172.0,97171.0,0.55271131]
[1738783917704,0.0001068,97176.0,97175.0,0.30436]
[1738783917903,0.0001068,97176.0,97175.0,0.40686365]
[1738783919319,0.06321074,97199.0,97198.0,0.154324]
[1738783919549,0.28,97200.0,97199.0,0.154322]
[1738783920969,0.28,97200.0,97199.0,0.304322]
[1738783921576,0.28,97200.0,97199.0,0.31194472]
[1738783922516,0.28,97200.0,97199.0,0.32269763]
[1738783924992,0.28,97200.0,97199.0,0.31507491]
[1738783925689,0.28,97200.0,97199.0,0.16507491]
[1738783925909,0.28,97200.0,97199.0,0.154322]
[1738783926129,0.40550365,97200.0,97194.0,0.205772]
[1738783926329,0.12550365,97199.0,97198.0,0.154324]
[1738783927451,0.28,97200.0,97198.0,0.154324]
[1738783927650,0.28,97200.0,97198.0,0.229724]
[1738783927897,0.28,97200.0,97199.0,0.15]
[1738783928453,0.28,97200.0,97199.0,0.30454628]
[1738783928808,0.2801068,97200.0,97199.0,0.30454628]
[1738783930413,0.2801068,97200.0,97199.0,0.31215011]
[1738783932547,0.2801068,97200.0,97199.0,0.39025011]
[1738783932806,0.2801068,97200.0,97199.0,0.43965011]
[1738783936934,0.27970415,97200.0,97199.0,0.43965011]
[1738783939099,0.27970415,97200.0,97199.0,0.31215011]
[1738783939821,0.27970415,97200.0,97199.0,0.16215011]
[1738783940063,0.27970415,97200.0,97199.0,0.31215011]
[1738783947977,0.27970415,97200.0,97199.0,0.16215011]
[1738783948239,0.43317822,97200.0,97199.0,0.00782811]
[1738783949427,0.47016637,97200.0,97199.0,0.00782811]
[1738783949636,0.47016637,97200.0,97199.0,0.00022428]
[1738783950651,0.62448637,97200.0,97199.0,0.00022428]
[1738783950823,0.70488637,97200.0,97199.0,0.00022428]
[1738783951147,0.71492637,97200.0,97199.0,0.00022428]
[1738783952337,0.23716,97175.0,97174.0,0.08199704]
[1738783952547,0.36266365,97175.0,97174.0,0.08199704]
[1738783952763,0.023,97174.0,97171.0,0.00022428]
[1738783953041,0.177365,97172.0,97171.0,0.00022428]
[1738783953240,0.27986865,97172.0,97171.0,0.00022428]
[1738783953670,0.47860627,97172.0,97171.0,0.00022428]
[1738783954832,0.48911023,97172.0,97171.0,0.00022428]
[1738783955284,0.3966568,97172.0,97171.0,0.00022428]
[1738783955493,0.2422918,97172.0,97171.0,0.00022428]
[1738783955697,0.3966568,97172.0,97171.0,0.00022428]
[1738783956068,0.21952986,97172.0,97171.0,0.00022428]
[1738783956705,0.37389486,97172.0,97171.0,0.00022428]
[1738783957756,0.45902108,97172.0,97171.0,0.00022428]
[1738783958323,0.30465608,97172.0,97171.0,0.00022428]
[1738783958733,0.45902108,97172.0,97171.0,0.00022428]
[1738783962555,0.62902108,97172.0,97171.0,0.00022428]
[1738783962755,0.67592108,97172.0,97171.0,0.00022428]
[1738783962960,0.73777108,97172.0,97171.0,0.00022428]
[1738783963585,0.39779486,97172.0,97171.0,0.00022428]
[1738783963900,0.35089486,97172.0,97171.0,0.00022428]
[1738783964322,0.27109486,97172.0,97171.0,0.00022428]
[1738783964523,0.11672986,97172.0,97171.0,0.00022428]
[1738783965877,0.13972986,97172.0,97171.0,0.00022428]
[1738783967469,0.16232483,97172.0,97171.0,0.00022428]
[1738783967932,0.38982483,97172.0,97171.0,0.00022428]
[1738783968133,0.43802483,97172.0,97171.0,0.00022428]
[1738783968531,1.93802483,97172.0,97171.0,0.00022428]
[1738783968813,0.43802483,97172.0,97171.0,0.00022428]
[1738783969013,0.56338784,97172.0,97171.0,0.00022428]
[1738783969245,0.89848784,97172.0,97171.0,0.00022428]
[1738783969452,0.1774,97150.0,97149.0,0.00022449]
[1738783969776,0.35740365,97150.0,97149.0,0.00022449]
[1738783969977,0.4599073,97150.0,97149.0,0.00022449]
[1738783970716,0.50958784,97150.0,97149.0,0.00022449]
[1738783973580,0.52047817,97150.0,97149.0,0.00022449]
[1738783975365,0.26557817,97150.0,97149.0,0.00022449]
[1738783975592,0.15218419,97150.0,97149.0,0.00022449]
[1738783976860,0.04968054,97150.0,97149.0,0.07782449]
[1738783977415,0.04968054,97150.0,97149.0,0.08852791]
[1738783978058,0.04968054,97150.0,97149.0,0.07782449]
[1738783978503,0.01422621,97150.0,97149.0,0.07782449]
[1738783979484,0.02267527,97168.0,97164.0,0.154377]
[1738783979694,0.10250365,97167.0,97164.0,0.154377]
[1738783980011,0.10250365,97167.0,97150.0,0.205867]
[1738783980460,0.10250365,97167.0,97166.0,0.154374]
[1738783981135,0.02267527,97168.0,97163.0,0.205838]
[1738783981136,0.02267527,97168.0,97167.0,0.234073]
[1738783981336,0.38597457,97200.0,97175.0,0.30436]
[1738783981337,0.02264469,97176.0,97175.0,0.30436]
[1738783982902,0.01285526,97198.0,97176.0,0.15]
[1738783983033,0.10250365,97197.0,97177.0,0.00102895]
[1738783983357,0.04177078,97196.0,97171.0,0.15]
[1738783983553,0.023,97193.0,97167.0,0.53533359]
[1738783983752,0.023,97191.0,97167.0,0.45563359]
[1738783983981,0.154351,97181.0,97167.0,0.45563359]
[1738783984177,0.01285526,97198.0,97171.0,0.15]
[1738783984384,0.27970415,97200.0,97199.0,0.154322]
[1738783986184,0.31651937,97200.0,97199.0,0.154322]
[1738783987611,0.29386385,97200.0,97199.0,0.154322]
[1738783988951,0.27970415,97200.0,97199.0,0.154322]
[1738784000170,0.27970415,97200.0,97199.0,0.304322]
[1738784001610,0.27970415,97200.0,97199.0,0.383122]
[1738784002288,0.27970415,97200.0,97199.0,0.304322]
[1738784004402,0.27970415,97200.0,97199.0,0.383122]
[1738784004751,0.27970415,97200.0,97199.0,0.48562565]
[1738784004956,0.27970415,97200.0,97199.0,0.53312565]
[1738784006394,0.27970415,97200.0,97199.0,0.430622]
[1738784008539,0.27970415,97200.0,97199.0,0.53312565]
[1738784008933,0.26470415,97200.0,97199.0,0.53312565]
[1738784009292,0.24570415,97200.0,97199.0,0.53312565]
[1738784013968,0.24570415,97200.0,97199.0,0.430622]
[1738784014216,0.24570415,97200.0,97199.0,0.351822]
[1738784014805,0.22670415,97200.0,97199.0,0.351822]
[1738784014946,0.22670415,97200.0,97199.0,0.201822]
[1738784015148,0.22670415,97200.0,97199.0,0.154322]
[1738784015722,0.22670415,97200.0,97199.0,0.304322]
[1738784016126,0.22670415,97200.0,97199.0,0.381522]
[1738784016433,0.22670415,97200.0,97199.0,0.48402565]
[1738784017291,0.22670415,97200.0,97199.0,0.381522]
[1738784019115,0.20770415,97200.0,97199.0,0.381522]
[1738784019329,0.20770415,97200.0,97199.0,0.48402565]
[1738784019528,0.20770415,97200.0,97199.0,0.51567919]
[1738784021080,0.20770415,97200.0,97199.0,0.33597554]
[1738784022402,0.20770415,97200.0,97199.0,0.43847919]
[1738784023296,0.20770415,97200.0,97199.0,0.48407919]
[1738784023297,0.08424815,97200.0,97199.0,0.48407919]
[1738784023506,0.08424815,97200.0,97199.0,0.48430368]
[1738784023679,0.02252015,97200.0,97199.0,0.48430368]
[1738784024064,0.00194415,97200.0,97199.0,0.48430368]
[1738784024246,0.01101495,97232.0,97231.0,0.154271]
[1738784028954,0.01101495,97232.0,97231.0,0.30529944]
[1738784029155,0.01101495,97232.0,97231.0,0.304271]